fUST/lending_fUST_20250921
["ID","MTS","AMOUNT","RATE_DAILY","PERIOD"]
[386651456,1758450672080,-480.0,0.00021095,2]
[386651457,1758450672090,-480.0,0.00021095,2]
[386651458,1758450672100,-480.0,0.00021095,2]
[386651459,1758450672110,-512.27405801,0.00021095,2]
[386651460,1758450672120,-311.71593762,0.00021095,2]
[386651461,1758450672130,-480.0,0.00021095,2]
[386651462,1758450672139,-1245.61688671,0.00021095,2]
[386651463,1758450672151,-1109.33,0.00021095,2]
[386651464,1758450672163,-715.29,0.00021095,2]
[386651465,1758450672173,-749.03,0.00021095,2]
[386651466,1758450672183,-970.5,0.00021095,2]
[386651467,1758450672194,-480.0,0.00021095,2]
[386651468,1758450672205,-151.0,0.00021095,2]
[386651469,1758450672215,-151.0,0.00021095,2]
[386651470,1758450672225,-151.0,0.00021095,2]
[386651471,1758450672234,-151.0,0.00021095,2]
[386651472,1758450672243,-480.0,0.00021095,2]
[386651473,1758450672253,-480.0,0.00021095,2]
[386651474,1758450672262,-480.0,0.00021095,2]
[386651475,1758450672272,-1406.33,0.00021095,2]
[386651476,1758450672282,-2494.88,0.00021095,2]
[386651477,1758450672292,-480.0,0.00021095,2]
[386651478,1758450672302,-296.45707965,0.00021095,2]
[386651479,1758450672312,-480.0,0.00021095,2]
[386651480,1758450672326,-480.0,0.00021095,2]
[386651481,1758450672335,-503.84,0.00021095,2]
[386651482,1758450672345,-480.0,0.00021095,2]
[386651483,1758450672355,-540.03,0.00021095,2]
[386651484,1758450672364,-480.0,0.00021095,2]
[386651485,1758450672374,-524.98389916,0.00021095,2]
[386651486,1758450672383,-480.0,0.00021095,2]
[386651487,1758450672393,-2365.7,0.00021095,2]
[386651488,1758450672402,-480.0,0.00021095,2]
[386651489,1758450672412,-480.0,0.00021095,2]
[386651490,1758450672421,-480.0,0.00021095,2]
[386651491,1758450672431,-717.17,0.00021095,2]
[386651492,1758450672442,-491.3761596,0.00021095,2]
[386651493,1758450672452,-1136.14,0.00021095,2]
[386651494,1758450672461,-480.0,0.00021095,2]
[386651495,1758450672471,-1143.86,0.00021095,2]
[386651496,1758450672480,-480.0,0.00021095,2]
[386651497,1758450672489,-488.78490244,0.00021095,2]
[386651498,1758450672499,-385.01722467,0.00021095,2]
[386651499,1758450672508,-297.00505942,0.00021095,2]
[386651500,1758450672519,-480.0,0.00021095,2]
[386651501,1758450672528,-480.0,0.00021095,2]
[386651502,1758450672538,-1462.33,0.00021095,2]
[386651503,1758450672548,-480.0,0.00021095,2]
[386651504,1758450672557,-480.0,0.00021095,2]
[386651505,1758450672566,-480.0,0.00021095,2]
[386651506,1758450672576,-480.0,0.00021095,2]
[386651507,1758450672585,-480.0,0.00021095,2]
[386651508,1758450672594,-480.0,0.00021095,2]
[386651509,1758450672603,-480.0,0.00021095,2]
[386651510,1758450672613,-480.0,0.00021095,2]
[386651511,1758450672623,-1886.72,0.00021095,2]
[386651512,1758450672633,-303.92239101,0.00021095,2]
[386651513,1758450672642,-480.0,0.00021095,2]
[386651514,1758450672652,-480.0,0.00021095,2]
[386651515,1758450672662,-480.0,0.00021095,2]
[386651516,1758450672671,-480.0,0.00021095,2]
[386651517,1758450672681,-480.0,0.00021095,2]
[386651518,1758450672692,-480.0,0.00021095,2]
[386651519,1758450672702,-480.0,0.00021095,2]
[386651520,1758450672711,-480.0,0.00021095,2]
[386651521,1758450672722,-617.74203495,0.00021095,2]
[386651522,1758450672731,-480.0,0.00021095,2]
[386651523,1758450672741,-480.0,0.00021095,2]
[386651524,1758450672750,-480.0,0.00021095,2]
[386651525,1758450672759,-499.54,0.00021095,2]
[386651526,1758450672769,-480.0,0.00021095,2]
[386651527,1758450672779,-480.0,0.00021095,2]
[386651528,1758450672788,-1136.27,0.00021095,2]
[386651529,1758450672798,-599.27,0.00021095,2]
[386651530,1758450672807,-480.0,0.00021095,2]
[386651531,1758450672816,-2248.31,0.00021095,2]
[386651532,1758450672826,-480.0,0.00021095,2]
[386651533,1758450672836,-897.88,0.00021095,2]
[386651534,1758450672846,-480.0,0.00021095,2]
[386651535,1758450672856,-480.0,0.00021095,2]
[386651536,1758450672865,-1185.39,0.00021095,2]
[386651537,1758450672875,-480.0,0.00021095,2]
[386651538,1758450672884,-480.0,0.00021095,2]
[386651539,1758450672895,-167.75548567,0.00021095,2]
[386651540,1758450672904,-480.0,0.00021095,2]
[386651541,1758450672914,-480.0,0.00021095,2]
[386651542,1758450672924,-1126.63,0.00021095,2]
[386651543,1758450672934,-1043.68,0.00021095,2]
[386651544,1758450672943,-599.0,0.00021095,2]
[386651545,1758450672952,-480.0,0.00021095,2]
[386651546,1758450672962,-480.0,0.00021095,2]
[386651547,1758450672971,-480.0,0.00021095,2]
[386651548,1758450672981,-228.45954699,0.00021095,2]
[386651549,1758450672991,-411.5082085,0.00021095,2]
[386651550,1758450673000,-480.0,0.00021095,2]
[386651551,1758450673010,-756.19,0.00021095,2]
[386651552,1758450673019,-352.60021733,0.00021095,2]
[386651553,1758450673115,-480.0,0.00021095,2]
[386651554,1758450673125,-480.0,0.00021095,2]
[386651555,1758450673135,-480.0,0.00021095,2]
[386651556,1758450673144,-486.10266892,0.00021095,2]
[386651557,1758450673154,-489.54397273,0.00021095,2]
[386651558,1758450673163,-480.0,0.00021095,2]
[386651559,1758450673173,-480.0,0.00021095,2]
[386651560,1758450673182,-495.84396361,0.00021095,2]
[386651561,1758450673192,-1323.22,0.00021095,2]
[386651562,1758450673201,-480.0,0.00021095,2]
[386651563,1758450673210,-480.0,0.00021095,2]
[386651564,1758450673219,-480.0,0.00021095,2]
[386651565,1758450673229,-500.0,0.00021096,2]
[386651566,1758450673238,-500.0,0.00021096,2]
[386651567,1758450673248,-435.0,0.00021096,2]
[386651568,1758450673258,-4000.0,0.00021111,4]
[386651569,1758450673268,-971.5733539,0.00021116,2]
[386651570,1758450673278,-279.973145,0.00021116,2]
[386651571,1758450673287,-551.07059046,0.00021116,2]
[386651572,1758450673296,-1001.8487975,0.00021116,2]
[386651573,1758450673306,-2000.0,0.00021116,2]
[386651574,1758450673318,-2000.0,0.00021116,2]
[386651575,1758450673329,-1261.85483045,0.00021116,2]
[386651576,1758450673339,-200.83885379,0.00021116,2]
[386651577,1758450673349,-2000.0,0.00021116,2]
[386651578,1758450673359,-2000.0,0.00021116,2]
[386651579,1758450673368,-435.0,0.00021213,2]
[386651580,1758450673378,-12056.14,0.00021269,2]
[386651581,1758450673387,-154.878965,0.00021269,2]
[386651582,1758450673396,-151.0,0.00021269,2]
[386651583,1758450673405,-151.0,0.00021269,2]
[386651584,1758450673415,-151.0,0.000213,3]
[386651585,1758450673424,-4459.720956,0.00021339,2]
[386651586,1758450673433,-609.0059365,0.00021364,2]
[386651587,1758450673443,-2500.0,0.00021364,2]
[386651588,1758450673452,-1329.49260123,0.00021364,2]
[386651589,1758450673462,-2500.0,0.00021364,2]
[386651590,1758450673471,-2500.0,0.00021364,2]
[386651591,1758450673481,-2500.0,0.00021364,2]
[386651592,1758450673490,-2000.0,0.00021364,2]
[386651593,1758450673499,-496.89196208,0.00021369,2]
[386651594,1758450673508,-480.0,0.00021369,2]
[386651595,1758450673517,-480.0,0.00021369,2]
[386651596,1758450673527,-480.0,0.00021369,2]
[386651597,1758450673536,-480.0,0.00021369,2]
[386651598,1758450673545,-480.0,0.00021369,2]
[386651599,1758450673555,-403.80446147,0.00021369,2]
[386651600,1758450673564,-480.0,0.00021369,2]
[386651601,1758450673573,-480.0,0.00021369,2]
[386651602,1758450673583,-611.3,0.00021369,2]
[386651603,1758450673593,-480.0,0.00021369,2]
[386651604,1758450673602,-151.88291721,0.00021369,2]
[386651605,1758450673612,-490.37610235,0.00021369,2]
[386651606,1758450673621,-480.0,0.00021369,2]
[386651607,1758450673630,-497.73733849,0.00021369,2]
[386651608,1758450673640,-495.21779081,0.00021369,2]
[386651609,1758450673650,-480.0,0.00021369,2]
[386651610,1758450673660,-480.0,0.00021369,2]
[386651611,1758450673669,-525.71,0.00021369,2]
[386651612,1758450673678,-496.58980733,0.00021369,2]
[386651613,1758450673688,-480.0,0.00021369,2]
[386651614,1758450673698,-480.0,0.00021369,2]
[386651615,1758450673708,-480.0,0.00021369,2]
[386651616,1758450673718,-480.0,0.00021369,2]
[386651617,1758450673727,-494.3,0.00021369,2]
[386651618,1758450673737,-480.0,0.00021369,2]
[386651619,1758450673747,-480.0,0.00021369,2]
[386651620,1758450673756,-151.0,0.00021369,2]
[386651621,1758450673766,-151.0,0.00021369,2]
[386651622,1758450673776,-480.0,0.00021369,2]
[386651623,1758450673786,-265.852557,0.00021369,2]
[386651624,1758450673795,-154.080697,0.00021369,2]
[386651625,1758450673805,-480.0,0.00021369,2]
[386651626,1758450673814,-480.0,0.00021369,2]
[386651627,1758450673824,-222.53119266,0.00021369,2]
[386651628,1758450673838,-163.42625366,0.00021369,2]
[386651629,1758450673848,-151.0,0.00021369,2]
[386651630,1758450673858,-151.0,0.00021369,2]
[386651631,1758450673867,-151.0,0.00021369,2]
[386651632,1758450673877,-480.0,0.00021369,2]
[386651633,1758450673886,-480.0,0.00021369,2]
[386651634,1758450673896,-480.0,0.00021369,2]
[386651635,1758450673906,-480.0,0.00021369,2]
[386651636,1758450673915,-480.0,0.00021369,2]
[386651637,1758450673924,-480.0,0.00021369,2]
[386651638,1758450673934,-585.99,0.00021369,2]
[386651639,1758450673943,-13209.4,0.00021369,2]
[386651640,1758450673953,-566.79010753,0.00021369,2]
[386651641,1758450673963,-487.9722024,0.00021369,2]
[386651642,1758450673973,-480.0,0.00021369,2]
[386651643,1758450673982,-480.0,0.00021369,2]
[386651644,1758450673991,-480.0,0.00021369,2]
[386651645,1758450674001,-480.0,0.00021369,2]
[386651646,1758450674011,-480.0,0.00021369,2]
[386651647,1758450674020,-538.75,0.00021369,2]
[386651648,1758450674030,-480.0,0.00021369,2]
[386651649,1758450674039,-480.0,0.00021369,2]
[386651650,1758450674049,-480.0,0.00021369,2]
[386651651,1758450674058,-3848.78,0.00021369,2]
[386651652,1758450674068,-480.0,0.00021369,2]
[386651653,1758450674080,-480.0,0.00021369,2]
[386651654,1758450674091,-480.0,0.00021369,2]
[386651655,1758450674101,-480.0,0.00021369,2]
[386651656,1758450674110,-480.0,0.00021369,2]
[386651657,1758450674120,-480.0,0.00021369,2]
[386651658,1758450674131,-480.0,0.00021369,2]
[386651659,1758450674140,-480.0,0.00021369,2]
[386651660,1758450674151,-480.0,0.00021369,2]
[386651661,1758450674160,-480.0,0.00021369,2]
[386651662,1758450674170,-480.0,0.00021369,2]
[386651663,1758450674179,-1109.33,0.00021369,2]
[386651664,1758450674188,-749.03,0.00021369,2]
[386651665,1758450674198,-715.29,0.00021369,2]
[386651666,1758450674207,-970.5,0.00021369,2]
[386651667,1758450674217,-480.0,0.00021369,2]
[386651668,1758450674227,-480.0,0.00021369,2]
[386651669,1758450674237,-480.0,0.00021369,2]
[386651670,1758450674246,-480.0,0.00021369,2]
[386651671,1758450674256,-1406.33,0.00021369,2]
[386651672,1758450674266,-480.0,0.00021369,2]
[386651673,1758450674275,-2494.88,0.00021369,2]
[386651674,1758450674286,-480.0,0.00021369,2]
[386651675,1758450674296,-480.0,0.00021369,2]
[386651676,1758450674305,-503.84,0.00021369,2]
[386651677,1758450674316,-480.0,0.00021369,2]
[386651678,1758450674331,-540.03,0.00021369,2]
[386651679,1758450674341,-482.95168314,0.00021369,2]
[386651680,1758450674350,-480.0,0.00021369,2]
[386651681,1758450674360,-2365.7,0.00021369,2]
[386651682,1758450674370,-480.0,0.00021369,2]
[386651683,1758450674380,-492.19459068,0.00021369,2]
[386651684,1758450674389,-480.0,0.00021369,2]
[386651685,1758450674399,-717.17,0.00021369,2]
[386651686,1758450674410,-1136.14,0.00021369,2]
[386651687,1758450674419,-480.0,0.00021369,2]
[386651688,1758450674429,-1143.86,0.00021369,2]
[386651689,1758450674438,-495.42110823,0.00021369,2]
[386651690,1758450674448,-480.0,0.00021369,2]
[386651691,1758450674458,-480.0,0.00021369,2]
[386651692,1758450674468,-1462.33,0.00021369,2]
[386651693,1758450674478,-480.0,0.00021369,2]
[386651694,1758450674488,-480.0,0.00021369,2]
[386651695,1758450674497,-480.0,0.00021369,2]
[386651696,1758450674507,-480.0,0.00021369,2]
[386651697,1758450674516,-480.0,0.00021369,2]
[386651698,1758450674526,-480.0,0.00021369,2]
[386651699,1758450674535,-480.0,0.00021369,2]
[386651700,1758450674546,-371.15833634,0.00021369,2]
[386651701,1758450674555,-1886.72,0.00021369,2]
[386651702,1758450674564,-480.0,0.00021369,2]
[386651703,1758450674573,-520.27590122,0.00021369,2]
[386651704,1758450674582,-480.0,0.00021369,2]
[386651705,1758450674592,-433.006071,0.00021369,2]
[386651706,1758450674601,-433.006071,0.00021369,2]
[386651707,1758450674611,-480.0,0.00021369,2]
[386651708,1758450674620,-480.0,0.00021369,2]
[386651709,1758450674711,-480.0,0.00021369,2]
[386651710,1758450674722,-480.0,0.00021369,2]
[386651711,1758450674731,-433.006071,0.00021369,2]
[386651712,1758450674741,-433.00607,0.00021369,2]
[386651713,1758450674751,-168.9107605,0.00021369,2]
[386651714,1758450674761,-164.829468,0.00021369,2]
[386651715,1758450674770,-480.0,0.00021369,2]
[386651716,1758450674780,-480.0,0.00021369,2]
[386651717,1758450674789,-499.54,0.00021369,2]
[386651718,1758450674799,-480.0,0.00021369,2]
[386651719,1758450674809,-480.0,0.00021369,2]
[386651720,1758450674818,-1136.27,0.00021369,2]
[386651721,1758450674827,-599.27,0.00021369,2]
[386651722,1758450674837,-480.0,0.00021369,2]
[386651723,1758450674847,-2248.31,0.00021369,2]
[386651724,1758450674857,-460.558345,0.00021369,2]
[386651725,1758450674866,-897.88,0.00021369,2]
[386651726,1758450674876,-492.44740963,0.00021369,2]
[386651727,1758450674885,-480.0,0.00021369,2]
[386651728,1758450674893,-1185.39,0.00021369,2]
[386651729,1758450674903,-480.0,0.00021369,2]
[386651730,1758450674912,-480.0,0.00021369,2]
[386651731,1758450674922,-480.0,0.00021369,2]
[386651732,1758450674931,-480.0,0.00021369,2]
[386651733,1758450674941,-1126.63,0.00021369,2]
[386651734,1758450674950,-1043.68,0.00021369,2]
[386651735,1758450674959,-599.0,0.00021369,2]
[386651736,1758450674971,-480.0,0.00021369,2]
[386651737,1758450674980,-480.0,0.00021369,2]
[386651738,1758450674990,-480.0,0.00021369,2]
[386651739,1758450675000,-480.0,0.00021369,2]
[386651740,1758450675009,-756.19,0.00021369,2]
[386651741,1758450675019,-480.0,0.00021369,2]
[386651742,1758450675028,-480.0,0.00021369,2]
[386651743,1758450675038,-480.0,0.00021369,2]
[386651744,1758450675047,-480.0,0.00021369,2]
[386651745,1758450675057,-1323.22,0.00021369,2]
[386651746,1758450675066,-480.0,0.00021369,2]
[386651747,1758450675075,-480.0,0.00021369,2]
[386651748,1758450675087,-500.0,0.0002137,2]
[386651749,1758450675096,-500.0,0.0002137,2]
[386651750,1758450675107,-160.0,0.00021374,4]
[386651751,1758450675117,-151.0,0.00021388,2]
[386651752,1758450675126,-151.0,0.00021388,2]
[386651753,1758450675136,-151.0,0.00021388,2]
[386651754,1758450675146,-153.08488,0.00021388,2]
[386651755,1758450675155,-435.0,0.00021392,2]
[386651756,1758450675165,-2000.0,0.00021416,2]
[386651757,1758450675174,-373.49166916,0.00021416,2]
[386651758,1758450675184,-689.43090805,0.00021416,2]
[386651759,1758450675193,-435.0,0.00021435,2]
[386651760,1758450675203,-800.0,0.0002148,2]
[386651761,1758450675212,-435.0,0.00021488,2]
[386651762,1758450675221,-435.0,0.00021525,2]
[386651763,1758450675231,-460.0,0.00021538,2]
[386651764,1758450675241,-328.56569,0.0002155,2]
[386651765,1758450675250,-640.46405054,0.00021553,2]
[386651766,1758450675260,-151.0,0.000216,3]
[386651767,1758450675269,-1500.0,0.00021611,2]
[386651768,1758450675278,-1500.0,0.00021611,2]
[386651769,1758450675288,-889.85371098,0.00021611,2]
[386651770,1758450675297,-1504.8872314,0.00021611,2]
[386651771,1758450675307,-1500.0,0.00021611,2]
[386651772,1758450675319,-1549.91780046,0.00021611,2]
[386651773,1758450675333,-346.53,0.00021643,2]
[386651774,1758450675343,-480.0,0.00021643,2]
[386651775,1758450675352,-500.56870023,0.00021643,2]
[386651776,1758450675361,-480.0,0.00021643,2]
[386651777,1758450675371,-357.24425744,0.00021643,2]
[386651778,1758450675380,-480.0,0.00021643,2]
[386651779,1758450675389,-480.0,0.00021643,2]
[386651780,1758450675398,-480.0,0.00021643,2]
[386651781,1758450675407,-317.0786928,0.00021643,2]
[386651782,1758450675416,-480.0,0.00021643,2]
[386651783,1758450675425,-480.0,0.00021643,2]
[386651784,1758450675435,-525.71,0.00021643,2]
[386651785,1758450675444,-480.0,0.00021643,2]
[386651786,1758450675453,-583.2464814,0.00021643,2]
[386651787,1758450675462,-480.0,0.00021643,2]
[386651788,1758450675471,-494.3,0.00021643,2]
[386651789,1758450675481,-480.0,0.00021643,2]
[386651790,1758450675490,-480.0,0.00021643,2]
[386651791,1758450675499,-480.0,0.00021643,2]
[386651792,1758450675509,-480.0,0.00021643,2]
[386651793,1758450675518,-480.0,0.00021643,2]
[386651794,1758450675527,-480.0,0.00021643,2]
[386651795,1758450675536,-480.0,0.00021643,2]
[386651796,1758450675544,-480.0,0.00021643,2]
[386651797,1758450675554,-480.0,0.00021643,2]
[386651798,1758450675563,-480.0,0.00021643,2]
[386651799,1758450675572,-480.0,0.00021643,2]
[386651800,1758450675581,-585.99,0.00021643,2]
[386651801,1758450675589,-13209.4,0.00021643,2]
[386651802,1758450675598,-480.0,0.00021643,2]
[386651803,1758450675607,-480.0,0.00021643,2]
[386651804,1758450675616,-480.0,0.00021643,2]
[386651805,1758450675625,-480.0,0.00021643,2]
[386651806,1758450675634,-480.0,0.00021643,2]
[386651807,1758450675643,-538.75,0.00021643,2]
[386651808,1758450675653,-480.0,0.00021643,2]
[386651809,1758450675662,-530.48253614,0.00021643,2]
[386651810,1758450675672,-566.64618465,0.00021643,2]
[386651811,1758450675681,-3848.78,0.00021643,2]
[386651812,1758450675691,-480.0,0.00021643,2]
[386651813,1758450675700,-480.0,0.00021643,2]
[386651814,1758450675709,-480.0,0.00021643,2]
[386651815,1758450675718,-480.0,0.00021643,2]
[386651816,1758450675727,-480.0,0.00021643,2]
[386651817,1758450675737,-480.0,0.00021643,2]
[386651818,1758450675747,-480.0,0.00021643,2]
[386651819,1758450675756,-480.0,0.00021643,2]
[386651820,1758450675766,-480.0,0.00021643,2]
[386651821,1758450675775,-480.0,0.00021643,2]
[386651822,1758450675784,-480.0,0.00021643,2]
[386651823,1758450675794,-1109.33,0.00021643,2]
[386651824,1758450675803,-749.03,0.00021643,2]
[386651825,1758450675813,-715.29,0.00021643,2]
[386651826,1758450675822,-970.5,0.00021643,2]
[386651827,1758450675832,-480.0,0.00021643,2]
[386651828,1758450675842,-480.0,0.00021643,2]
[386651829,1758450675852,-480.0,0.00021643,2]
[386651830,1758450675862,-1406.33,0.00021643,2]
[386651831,1758450675872,-480.0,0.00021643,2]
[386651832,1758450675881,-2494.88,0.00021643,2]
[386651833,1758450675890,-480.0,0.00021643,2]
[386651834,1758450675900,-497.06219312,0.00021643,2]
[386651835,1758450675909,-503.84,0.00021643,2]
[386651836,1758450675918,-480.0,0.00021643,2]
[386651837,1758450675929,-540.03,0.00021643,2]
[386651838,1758450675938,-480.0,0.00021643,2]
[386651839,1758450675947,-2365.7,0.00021643,2]
[386651840,1758450675957,-151.0,0.00021643,2]
[386651841,1758450675966,-480.0,0.00021643,2]
[386651842,1758450675976,-480.0,0.00021643,2]
[386651843,1758450675986,-151.0,0.00021643,2]
[386651844,1758450675995,-717.17,0.00021643,2]
[386651845,1758450676004,-1136.14,0.00021643,2]
[386651846,1758450676014,-480.0,0.00021643,2]
[386651847,1758450676023,-1143.86,0.00021643,2]
[386651848,1758450676032,-480.0,0.00021643,2]
[386651849,1758450676043,-480.0,0.00021643,2]
[386651850,1758450676053,-1462.33,0.00021643,2]
[386651851,1758450676063,-154.76423381,0.00021643,2]
[386651852,1758450676072,-480.0,0.00021643,2]
[386651853,1758450676158,-480.0,0.00021643,2]
[386651854,1758450676168,-480.0,0.00021643,2]
[386651855,1758450676178,-496.49513914,0.00021643,2]
[386651856,1758450676187,-480.0,0.00021643,2]
[386651857,1758450676197,-480.0,0.00021643,2]
[386651858,1758450676206,-1886.72,0.00021643,2]
[386651859,1758450676215,-480.0,0.00021643,2]
[386651860,1758450676225,-480.0,0.00021643,2]
[386651861,1758450676234,-480.0,0.00021643,2]
[386651862,1758450676244,-480.0,0.00021643,2]
[386651863,1758450676253,-480.0,0.00021643,2]
[386651864,1758450676263,-480.0,0.00021643,2]
[386651865,1758450676273,-480.0,0.00021643,2]
[386651866,1758450676283,-480.0,0.00021643,2]
[386651867,1758450676293,-499.54,0.00021643,2]
[386651868,1758450676302,-480.0,0.00021643,2]
[386651869,1758450676313,-480.0,0.00021643,2]
[386651870,1758450676323,-1136.27,0.00021643,2]
[386651871,1758450676336,-599.27,0.00021643,2]
[386651872,1758450676346,-480.0,0.00021643,2]
[386651873,1758450676356,-2248.31,0.00021643,2]
[386651874,1758450676365,-897.88,0.00021643,2]
[386651875,1758450676375,-480.0,0.00021643,2]
[386651876,1758450676385,-1185.39,0.00021643,2]
[386651877,1758450676395,-480.0,0.00021643,2]
[386651878,1758450676404,-480.0,0.00021643,2]
[386651879,1758450676415,-480.0,0.00021643,2]
[386651880,1758450676424,-480.0,0.00021643,2]
[386651881,1758450676434,-1126.63,0.00021643,2]
[386651882,1758450676444,-1043.68,0.00021643,2]
[386651883,1758450676453,-599.0,0.00021643,2]
[386651884,1758450676462,-480.0,0.00021643,2]
[386651885,1758450676471,-480.0,0.00021643,2]
[386651886,1758450676483,-480.0,0.00021643,2]
[386651887,1758450676492,-756.19,0.00021643,2]
[386651888,1758450676501,-480.0,0.00021643,2]
[386651889,1758450676511,-480.0,0.00021643,2]
[386651890,1758450676520,-480.0,0.00021643,2]
[386651891,1758450676529,-498.23435756,0.00021643,2]
[386651892,1758450676538,-1323.22,0.00021643,2]
[386651893,1758450676548,-480.0,0.00021643,2]
[386651894,1758450676558,-480.0,0.00021643,2]
[386651895,1758450676568,-500.0,0.00021644,2]
[386651896,1758450676578,-431.62687345,0.00021644,2]
[386651897,1758450676588,-504.639485,0.00021657,2]
[386651898,1758450676598,-503.0271083,0.00021657,2]
[386651899,1758450676608,-257.36639487,0.00021664,2]
[386651900,1758450676618,-2500.0,0.00021664,2]
[386651901,1758450676628,-2500.0,0.00021664,2]
[386651902,1758450676637,-599.42384492,0.00021664,2]
[386651903,1758450676647,-435.0,0.0002173,2]
[386651904,1758450676656,-995.0982511,0.00021776,2]
[386651905,1758450676665,-163.0,0.00021781,5]
[386651906,1758450676675,-23359.0305518,0.000218,4]
[386651907,1758450676684,-1600.0,0.00021808,2]
[386651908,1758450676693,-435.0,0.00021812,2]
[386651909,1758450676704,-151.0,0.000219,3]
[386651910,1758450676713,-500.0,0.00021912,2]
[386651911,1758450676723,-2000.0,0.00021912,2]
[386651912,1758450676732,-3014.68386253,0.00021912,2]
[386651913,1758450676742,-3000.0,0.00021912,2]
[386651914,1758450676751,-480.0,0.00021917,2]
[386651915,1758450676761,-480.0,0.00021917,2]
[386651916,1758450676770,-463.23459873,0.00021917,2]
[386651917,1758450676780,-480.0,0.00021917,2]
[386651918,1758450676790,-515.02431158,0.00021917,2]
[386651919,1758450676800,-480.0,0.00021917,2]
[386651920,1758450676811,-480.0,0.00021917,2]
[386651921,1758450676823,-525.71,0.00021917,2]
[386651922,1758450676833,-480.0,0.00021917,2]
[386651923,1758450676842,-480.0,0.00021917,2]
[386651924,1758450676852,-494.3,0.00021917,2]
[386651925,1758450676863,-399.784695,0.00021917,2]
[386651926,1758450676872,-399.784695,0.00021917,2]
[386651927,1758450676881,-480.0,0.00021917,2]
[386651928,1758450676890,-480.0,0.00021917,2]
[386651929,1758450676899,-480.0,0.00021917,2]
[386651930,1758450676908,-480.0,0.00021917,2]
[386651931,1758450676918,-480.0,0.00021917,2]
[386651932,1758450676928,-480.0,0.00021917,2]
[386651933,1758450676938,-399.784695,0.00021917,2]
[386651934,1758450676947,-480.0,0.00021917,2]
[386651935,1758450676956,-480.0,0.00021917,2]
[386651936,1758450676965,-480.0,0.00021917,2]
[386651937,1758450676974,-480.0,0.00021917,2]
[386651938,1758450676983,-490.48910028,0.00021917,2]
[386651939,1758450676992,-399.784695,0.00021917,2]
[386651940,1758450677001,-480.0,0.00021917,2]
[386651941,1758450677011,-480.0,0.00021917,2]
[386651942,1758450677020,-480.0,0.00021917,2]
[386651943,1758450677029,-480.0,0.00021917,2]
[386651944,1758450677042,-480.0,0.00021917,2]
[386651945,1758450677051,-500.0,0.00021917,2]
[386651946,1758450677061,-500.0,0.00021917,2]
[386651947,1758450677071,-500.0,0.00021917,2]
[386651948,1758450677079,-500.0,0.00021917,2]
[386651949,1758450677089,-507.87514399,0.00021917,2]
[386651950,1758450677099,-480.0,0.00021917,2]
[386651951,1758450677108,-480.0,0.00021917,2]
[386651952,1758450677117,-151.05050986,0.00021917,2]
[386651953,1758450677127,-480.0,0.00021917,2]
[386651954,1758450677137,-480.0,0.00021917,2]
[386651955,1758450677146,-480.0,0.00021917,2]